fUST/lending_fUST_20260225
["ID","MTS","AMOUNT","RATE_DAILY","PERIOD"]
[406580849,1771954246298,-224.93,0.00045907,120]
[406580850,1771954246307,-649.87,0.00046407,120]
[406580851,1771954246316,-236.17,0.00046407,120]
[406580852,1771954246326,-800.0,0.00046575,120]
[406580853,1771954246335,-800.0,0.00046575,120]
[406580854,1771954246345,-682.36,0.00046907,120]
[406580855,1771954246354,-248.03,0.00046907,120]
[406580856,1771954246363,-172.0,0.00047,90]
[406580857,1771954246372,-716.48,0.00047407,120]
[406580858,1771954246381,-730.321783,0.00047497,2]
[406580859,1771954246390,-752.3,0.00047907,120]
[406580860,1771954246400,-789.92,0.00048407,120]
[406580861,1771954246409,-402.0,0.00048416,31]
[406580862,1771954246418,-688.78,0.000485,14]
[406580863,1771954246428,-829.42,0.00048907,120]
[406580864,1771954246437,-175.20052986,0.00049041,120]
[406580865,1771954246446,-730.321783,0.00049209,2]
[406580866,1771954246456,-151.0,0.000493,28]
[406580867,1771954246465,-219.18999347,0.00049315,120]
[406580868,1771954246474,-238.79272384,0.00049315,120]
[406580869,1771954246483,-150.0,0.00049315,120]
[406580871,1771954246493,-150.0,0.00049315,120]
[406580872,1771954246502,-150.0,0.00049315,120]
[406580874,1771954246512,-200.4215101,0.00049315,120]
[406580876,1771954246521,-870.89,0.00049407,120]
[406580877,1771954246530,-150.0,0.00049438,120]
[406580879,1771954246539,-914.43,0.00049907,120]
[406580881,1771954246550,-151.0,0.000502,21]
[406580883,1771954246560,-151.0,0.000502,120]
[406580885,1771954246569,-151.0,0.000502,120]
[406580887,1771954246578,-183.943542,0.000502,120]
[406580889,1771954246587,-150.0,0.00050321,120]
[406580891,1771954246596,-960.15,0.00050407,120]
[406580893,1771954246605,-196.673624,0.00050407,120]
[406580895,1771954246614,-196.673624,0.00050407,120]
[406580897,1771954246623,-196.673624,0.00050407,120]
[406580899,1771954246632,-196.673624,0.00050407,120]
[406580900,1771954246641,-151.99231,0.00050407,120]
[406580902,1771954246651,-151.99231,0.00050407,120]
[406580904,1771954246660,-151.99231,0.00050407,120]
[406580906,1771954246670,-151.99231,0.00050407,120]
[406580908,1771954246679,-181.44004053,0.000506,120]
[406580910,1771954246689,-900.47937392,0.00050692,30]
[406580912,1771954246698,-1008.16,0.00050907,120]
[406580914,1771954246707,-151.0,0.00050907,30]
[406580916,1771954246717,-151.471067,0.00050907,120]
[406580918,1771954246725,-151.0,0.00050907,120]
[406580919,1771954246734,-500.0,0.00051,90]
[406580920,1771954246744,-1000.0,0.000511,60]
[406580921,1771954246753,-1000.0,0.000511,60]
[406580922,1771954246763,-151.0,0.000511,21]
[406580923,1771954246772,-150.0,0.00051203,120]
[406580925,1771954246781,-3428.58760255,0.0005137,30]
[406580927,1771954246790,-1058.57,0.00051407,120]
[406580929,1771954246799,-712.0,0.00051444,31]
[406580931,1771954246808,-4882.67,0.00051458,120]
[406580933,1771954246817,-151.99231,0.00051469,120]
[406580935,1771954246826,-151.99231,0.00051469,120]
[406580937,1771954246835,-151.99231,0.00051469,120]
[406580939,1771954246844,-151.99231,0.00051469,120]
[406580941,1771954246854,-184.393087,0.0005147,120]
[406580943,1771954246863,-151.0,0.0005148,30]
[406580944,1771954246873,-150.38,0.000515,14]
[406580946,1771954246886,-7008.43,0.000515,2]
[406580948,1771954246896,-1169.09,0.000515,30]
[406580950,1771954246905,-196.673624,0.000515,120]
[406580952,1771954246914,-196.673624,0.000515,120]
[406580953,1771954246923,-196.673624,0.000515,120]
[406580954,1771954246932,-196.673624,0.000515,120]
[406580955,1771954246942,-151.0,0.000515,120]
[406580956,1771954246952,-151.0,0.000515,120]
[406580957,1771954246962,-1111.5,0.00051907,120]
[406580958,1771954246971,-200.0,0.00051945,120]
[406580959,1771954246981,-302.0,0.00051945,120]
[406580960,1771954246990,-151.0,0.00051969,2]
[406580961,1771954247000,-151.0,0.00051969,2]
[406580969,1771954247125,-151.0,0.00051969,2]
[406580971,1771954247134,-151.0,0.00051969,2]
[406580972,1771954247144,-151.0,0.00051969,2]
[406580973,1771954247154,-151.0,0.00051969,2]
[406580974,1771954247164,-151.0,0.00051969,2]
[406580975,1771954247173,-151.0,0.00051969,2]
[406580976,1771954247183,-166.98018273,0.00051969,2]
[406580977,1771954247193,-1656.14,0.0005199,10]
[406580978,1771954247203,-12871.634593,0.0005199,4]
[406580979,1771954247213,-407662.74714776,0.00052,2]
[406580980,1771954247222,-413.31,0.00052,30]
[406580981,1771954247231,-467.96,0.00052,14]
[406580982,1771954247240,-151.0,0.00052,30]
[406580983,1771954247249,-196.673624,0.00052,120]
[406580984,1771954247259,-196.673624,0.00052,120]
[406580985,1771954247269,-196.673624,0.00052,120]
[406580986,1771954247278,-196.673624,0.00052,120]
[406580987,1771954247288,-151.99231,0.00052,120]
[406580988,1771954247298,-151.99231,0.00052,120]
[406580989,1771954247307,-151.99231,0.00052,120]
[406580990,1771954247317,-151.99231,0.00052,120]
[406580991,1771954247327,-360000.0,0.00052,2]
[406580992,1771954247336,-151.0,0.00052,120]
[406580993,1771954247345,-151.0,0.00052,120]
[406580994,1771954247354,-150.0,0.00052086,120]
[406580995,1771954247364,-1167.07,0.00052407,120]
[406580996,1771954247373,-1225.43,0.00052907,120]
[406580997,1771954247382,-150.0,0.00052969,120]
[406580998,1771954247392,-1286.7,0.00053407,120]
[406580999,1771954247402,-150.0,0.00053852,120]
[406581000,1771954247412,-688.78,0.000539,14]
[406581001,1771954247421,-1351.03,0.00053907,120]
[406581002,1771954247430,-6074.98933103,0.00054,30]
[406581003,1771954247440,-1022.6504348,0.00054356,30]
[406581004,1771954247449,-1418.59,0.00054407,120]
[406581005,1771954247459,-151.0,0.000546,25]
[406581006,1771954247468,-150.0,0.00054735,120]
[406581007,1771954247478,-500.0,0.00054794,120]
[406581008,1771954247487,-500.0,0.00054794,120]
[406581009,1771954247496,-339.92488,0.00054794,120]
[406581010,1771954247506,-500.0,0.00054794,120]
[406581011,1771954247515,-1430.18162145,0.00054897,4]
[406581012,1771954247525,-1489.51,0.00054907,120]
[406581013,1771954247535,-1000.0,0.00055,30]
[406581014,1771954247544,-500.0,0.00055342,120]
[406581015,1771954247553,-500.0,0.00055342,120]
[406581016,1771954247562,-151.99231,0.00055342,120]
[406581017,1771954247571,-151.99231,0.00055342,120]
[406581019,1771954247580,-151.99231,0.00055342,120]
[406581020,1771954247590,-151.99231,0.00055342,120]
[406581021,1771954247599,-500.0,0.00055342,120]
[406581022,1771954247611,-1563.99,0.00055407,120]
[406581024,1771954247620,-151.0,0.00055407,30]
[406581026,1771954247628,-196.673624,0.00055407,120]
[406581027,1771954247637,-196.673624,0.00055407,120]
[406581029,1771954247647,-196.673624,0.00055407,120]
[406581031,1771954247656,-196.673624,0.00055407,120]
[406581032,1771954247665,-151.0,0.000556,25]
[406581033,1771954247675,-150.0,0.00055617,120]
[406581034,1771954247684,-11441.4529716,0.00055833,4]
[406581035,1771954247693,-14310.37720708,0.00055843,2]
[406581036,1771954247705,-16303.529476,0.00055843,2]
[406581037,1771954247716,-17922.51265133,0.00055843,2]
[406581038,1771954247727,-4196.22471174,0.00055843,2]
[406582777,1771955152150,-780.61242465,0.0001729,120]
[406584641,1771955226085,-4219.38757535,0.0001729,120]
[406584643,1771955226106,-500.0,0.00017999,2]
[406584644,1771955226127,-500.0,0.00017999,2]
[406584645,1771955226147,-500.0,0.00017999,2]
[406584646,1771955226166,-190.874309,0.00026311,2]
[406584647,1771955226186,-2668.74535673,0.00027265,2]
[406584648,1771955226206,-4601.74,0.0003,2]
[406584649,1771955226225,-294.77537484,0.00038634,2]
[406584650,1771955226245,-640.57,0.00041493,2]
[406584651,1771955226264,-576.63266575,0.00041894,2]
[406584652,1771955226283,-188.94,0.00042407,120]
[406584653,1771955226305,-640.57,0.0004253,2]
[406584654,1771955226328,-198.39,0.00042907,120]
[406584656,1771955226347,-736.151,0.00043131,2]
[406584657,1771955226368,-208.31,0.00043407,120]
[406584659,1771955226389,-640.57,0.00043567,2]
[406584660,1771955226409,-744.3517164,0.0004381,2]
[406584661,1771955226429,-218.72,0.00043907,120]
[406584663,1771955226449,-651.22782665,0.00043958,2]
[406584664,1771955226470,-258.98262247,0.00044139,120]
[406584666,1771955226489,-229.66,0.00044407,120]
[406584667,1771955226508,-241.14,0.00044907,120]
[406584669,1771955226528,-253.2,0.00045407,120]
[406584670,1771955226547,-265.86,0.00045907,120]
[406584672,1771955226567,-727.0,0.00046131,2]
[406584673,1771955226588,-279.14,0.00046407,120]
[406584675,1771955226607,-293.11,0.00046907,120]
[406584676,1771955226636,-307.77,0.00047407,120]
[406584678,1771955226658,-323.16,0.00047907,120]
[406584679,1771955226683,-339.31,0.00048407,120]
[406584681,1771955226722,-356.28,0.00048907,120]
[406584683,1771955226758,-727.0,0.00049131,2]
[406584684,1771955226779,-173.0,0.0004932,31]
[406584686,1771955226801,-374.1,0.00049407,120]
[406584687,1771955226822,-392.8,0.00049907,120]
[406584689,1771955226842,-402.0,0.00049975,31]
[406584690,1771955226862,-412.44,0.00050407,120]
[406584691,1771955226881,-433.06,0.00050907,120]
[406584693,1771955226903,-445.28621703,0.00051037,30]
[406584694,1771955226924,-402.0,0.00051137,31]
[406584696,1771955226944,-454.72,0.00051407,120]
[406584697,1771955226964,-477.45,0.00051907,120]
[406584699,1771955226983,-727.0,0.00052131,2]
[406584700,1771955227003,-501.32,0.00052407,120]
[406584702,1771955227023,-526.39,0.00052907,120]
[406584703,1771955227042,-552.71,0.00053407,120]
[406584705,1771955227062,-327.8362311,0.00053807,28]
[406584706,1771955227081,-580.35,0.00053907,120]
[406584708,1771955227103,-659.15927612,0.00054249,30]
[406584709,1771955227126,-450.33421114,0.00054249,30]
[406584711,1771955227147,-609.36,0.00054407,120]
[406584712,1771955227168,-500.0,0.00054794,120]
[406584714,1771955227190,-500.0,0.00054794,120]
[406584715,1771955227212,-367.33415629,0.00054794,120]
[406584717,1771955227232,-639.83,0.00054907,120]
[406584718,1771955227251,-727.0,0.00055131,2]
[406584720,1771955227272,-366.0,0.00055174,2]
[406584721,1771955227292,-300.0,0.0005519,120]
[406584723,1771955227312,-500.0,0.00055342,120]
[406584724,1771955227337,-500.0,0.00055342,120]
[406584726,1771955227363,-671.82,0.00055407,120]
[406584727,1771955227385,-395.41894648,0.00055801,2]
[406584729,1771955227406,-3492.92,0.00055833,30]
[406584730,1771955227426,-2910.76,0.00055833,30]
[406584731,1771955227446,-2425.64,0.00055833,30]
[406584733,1771955227465,-2021.36,0.00055833,30]
[406584734,1771955227485,-1684.47,0.00055833,30]
[406584736,1771955227504,-1403.72,0.00055833,30]
[406584737,1771955227524,-1169.77,0.00055833,30]
[406584739,1771955227544,-974.81,0.00055833,30]
[406584740,1771955227563,-812.34,0.00055833,30]
[406584742,1771955227582,-676.95,0.00055833,30]
[406584743,1771955227601,-564.13,0.00055833,30]
[406584745,1771955227620,-470.1,0.00055833,30]
[406584746,1771955227639,-391.75,0.00055833,30]
[406584748,1771955227660,-326.46,0.00055833,30]
[406584749,1771955227680,-272.05,0.00055833,30]
[406584751,1771955227701,-226.71,0.00055833,30]
[406584752,1771955227722,-188.93,0.00055833,30]
[406584754,1771955227742,-157.44,0.00055833,30]
[406584755,1771955227761,-787.21,0.00055833,30]
[406584756,1771955227782,-4679.23,0.00055842,120]
[406584758,1771955227803,-500.0,0.00055842,120]
[406584759,1771955227823,-500.0,0.00055842,120]
[406584761,1771955227851,-83440.39876465,0.00055843,2]
[406585184,1771955246101,-391.74,0.00052031,120]
[406585186,1771955246130,-5000.0,0.00055285,2]
[406585187,1771955246153,-1380.11,0.00055833,10]
[406585189,1771955246172,-1150.1,0.00055833,10]
[406585190,1771955246192,-281821.07483195,0.00055843,2]
[406585192,1771955246214,-500.0,0.0005589,120]
[406585193,1771955246234,-500.0,0.0005589,120]
[406585195,1771955246253,-255.6,0.00055899,2]
[406585196,1771955246272,-6307.59,0.000559,2]
[406585198,1771955246291,-1052.18,0.000559,30]
[406585199,1771955246309,-535.71,0.000559,14]
[406585201,1771955246328,-705.42,0.00055907,120]
[406585202,1771955246348,-200.0,0.00056134,120]
[406585204,1771955246368,-1092.46246958,0.00056188,30]
[406585205,1771955246387,-500.0,0.0005639,120]
[406585207,1771955246406,-500.0,0.0005639,120]
[406585208,1771955246424,-740.69,0.00056407,120]
[406585209,1771955246442,-500.0,0.00056438,120]
[406585211,1771955246461,-500.0,0.00056438,120]
[406585212,1771955246480,-777.72,0.00056907,120]
[406585214,1771955246499,-500.0,0.00056938,120]
[406585215,1771955246518,-500.0,0.00056938,120]
[406585217,1771955246538,-500.0,0.00056986,120]
[406585218,1771955246558,-500.0,0.00056986,120]
[406585220,1771955246576,-816.61,0.00057407,120]
[406585221,1771955246595,-166.46692806,0.00057426,120]
[406585223,1771955246614,-500.0,0.00057486,120]
[406585224,1771955246634,-500.0,0.00057486,120]
[406585226,1771955246654,-500.0,0.00057534,120]
[406585227,1771955246674,-500.0,0.00057534,120]
[406585228,1771955246692,-857.44,0.00057907,120]
[406585230,1771955246711,-1000.0,0.00058,30]
[406585231,1771955246730,-532.67755653,0.00058034,120]
[406585233,1771955246749,-500.0,0.00058034,120]
[406585234,1771955246769,-500.0,0.00058082,120]
[406585236,1771955246788,-500.0,0.00058082,120]
[406585237,1771955246808,-900.31,0.00058407,120]
[406585239,1771955246828,-210.89339435,0.000585,120]
[406585240,1771955246846,-500.0,0.00058582,120]
[406585241,1771955246865,-500.0,0.0005863,120]
[406585243,1771955246884,-500.0,0.0005863,120]
[406585244,1771955246905,-16601.39129,0.000589,2]
[406585246,1771955246925,-4030.224744,0.000589,2]
[406585247,1771955246946,-945.33,0.00058907,120]
[406585249,1771955246964,-10071.66907901,0.00059,120]
[406585250,1771955246984,-378.31360511,0.0005913,120]
[406585252,1771955247004,-500.0,0.00059178,120]
[406585253,1771955247023,-9722.98147429,0.0005934,120]
[406585255,1771955247041,-992.59,0.00059407,120]
[406585256,1771955247060,-306191.5609,0.0005944,30]
[406585257,1771955247080,-371.98,0.000595,30]
[406585259,1771955247100,-421.16,0.000595,14]
[406585260,1771955247119,-500.0,0.00059726,120]
[406585262,1771955247143,-8999.0,0.00059863,120]
[406585263,1771955247161,-1042.42,0.00059907,120]
[406585265,1771955247183,-1000.0,0.0006,30]
[406585266,1771955247204,-1000.0,0.0006,120]
[406585268,1771955247223,-2902.26903572,0.0006,120]
[406585269,1771955247242,-166.46692806,0.00060058,120]
[406585271,1771955247261,-397.30514445,0.00060273,120]
[406585272,1771955247280,-3000.0,0.00060273,120]
[406585274,1771955247299,-166.41752291,0.00060273,120]
[406585275,1771955247317,-402.0,0.00061217,61]
[406585276,1771955247335,-6893.0,0.00061253,120]
[406585278,1771955247356,-151.0,0.000613,26]
[406585279,1771955247376,-8695.0,0.00061353,120]
[406585281,1771955247395,-1052.18,0.000614,30]
[406585282,1771955247413,-535.71,0.000614,14]
[406585284,1771955247435,-5000.0,0.00061488,30]
[406585285,1771955247454,-5000.0,0.00061488,30]
[406585287,1771955247474,-5000.0,0.00061488,30]
[406585288,1771955247492,-5000.0,0.00061488,30]
[406585290,1771955247512,-5000.0,0.00061488,30]
[406585291,1771955247531,-5000.0,0.00061488,30]
[406585293,1771955247550,-5000.0,0.00061488,30]
[406585294,1771955247570,-5000.0,0.00061488,30]
[406585296,1771955247588,-5000.0,0.00061488,30]
[406585297,1771955247607,-5000.0,0.00061488,30]
[406585299,1771955247626,-5000.0,0.00061488,30]
[406585300,1771955247644,-5000.0,0.00061488,30]
[406585302,1771955247663,-151.0,0.00061488,120]
[406585303,1771955247683,-500.0,0.0006168,120]
[406585305,1771955247702,-512.83911223,0.0006168,120]
[406585306,1771955247721,-6307.59,0.000617,2]
[406585308,1771955247740,-163.92118,0.00061797,30]
[406585309,1771955247760,-151.0,0.00061797,120]
[406585311,1771955247778,-1000.0,0.00062,30]
[406585312,1771955247799,-151.0,0.00062,27]
[406585314,1771955247818,-160.0,0.000623,3]
[406585316,1771955247840,-161.18552717,0.000623,5]
[406585317,1771955247860,-1597.08425845,0.00062381,30]
[406585319,1771955247878,-5000.0,0.0006242,30]
[406585320,1771955247897,-6911.36883261,0.0006259,2]
[406585322,1771955247916,-197.15304581,0.00062689,120]
[406585323,1771955247935,-63804.26432471,0.0006269,120]
[406585426,1771955252108,-1020.36049122,0.0006269,120]
[406586425,1771955431624,-5000.0,0.00024953,120]
[406586426,1771955431633,-306.44111628,0.000595,14]
[406586428,1771955431646,-72.60888372,0.000595,14]
[406586430,1771955431655,-334.78,0.000595,30]
[406586432,1771955431664,-151.0,0.00061488,120]
[406586434,1771955431673,-16303.529476,0.00062063,2]
[406586436,1771955431683,-744.3517164,0.00062423,2]
[406586438,1771955431693,-286.85670223,0.0006259,28]
[406586440,1771955431702,-245.80562319,0.0006259,120]
[406586442,1771955431712,-462.2,0.0006268,10]
[406586444,1771955431720,-313.02776781,0.0006268,5]
[406586446,1771955431730,-4484.26,0.00062689,120]
[406586448,1771955431739,-88488.16444328,0.0006269,120]
[406586450,1771955431749,-151770.6949933,0.0006269,120]
[406586452,1771955431761,-363.69361527,0.0006269,120]
[406586479,1771955437604,-449151.40561966,0.0006269,120]
[406586480,1771955437615,-1406.49327087,0.0006269,120]
[406586481,1771955437627,-4931.07580548,0.0006269,120]
[406586482,1771955437637,-383.058,0.0006269,120]
[406586483,1771955437648,-43325.92866284,0.0006269,120]
[406586485,1771955438444,-94421.463465,0.0006269,120]
[406586486,1771955438455,-8557.0418244,0.0006269,120]
[406586525,1771955440092,-881.38,0.0006268,10]
[406586527,1771955440102,-71.61271769,0.0006269,120]
[406586529,1771955440113,-2639.02615683,0.0006269,120]
[406586814,1771955442885,-100.45953523,0.00024953,120]
[406586817,1771955442897,-4899.54046477,0.00024953,120]
[406586819,1771955442907,-29030.98273255,0.0006269,120]
[406587215,1771955446668,-16440.82625,0.0006269,120]
[406587426,1771956359147,-706.19801135,0.00024703,120]
[406587723,1771956445135,-473.67327033,0.00024953,2]
[406587752,1771956547112,-4526.32672967,0.00024953,2]
[406587753,1771956554987,49.369065,0.00024953,2]
[406587773,1771956631738,-4950.630935,0.00024953,2]
[406587775,1771956631747,-222.94416975,0.00036359,7]
[406587776,1771956631756,-1157.4,0.0003642,10]
[406587777,1771956631766,-58.13013962,0.0003642,10]
[406587787,1771956637918,-906.36986038,0.0003642,10]
[406587788,1771956637928,-500.0,0.0003642,2]
[406587789,1771956637938,-12871.634593,0.0003642,3]
[406587790,1771956637950,-61383.81929948,0.0003643,2]
[406587845,1771956640481,-253.58814896,0.0003643,2]
[406588397,1771956645922,-1930.23,0.00024953,2]
[406589132,1771957541123,-758.84507275,0.000198,2]
[406589141,1771957653096,-1127.4242656,0.00019602,2]
[406589160,1771957774143,-3872.5757344,0.00019602,2]
[406589161,1771957774164,-6250.1549256,0.0002,2]
[406589192,1771957832021,-987.84927605,0.000198,2]
[406589193,1771957832032,-1163.20743793,0.000198,2]
[406589243,1771957838042,-2848.94328602,0.000198,2]
[406589245,1771957838052,-1830.3250744,0.0002,2]
[406589247,1771957838061,-2602.96294382,0.000247,2]
[406589249,1771957838070,-11276.9553176,0.00033442,2]
[406589251,1771957838081,-652.24,0.0003642,10]
[406589254,1771957838091,-1243.78,0.0003642,10]
[406589256,1771957838100,-1036.48,0.0003642,10]
[406589267,1771957838215,-863.74,0.0003642,10]
[406589268,1771957838225,-500.0,0.0003642,120]
[406589269,1771957838234,-6435.8172965,0.0003642,3]
[406589270,1771957838243,-500.0,0.00036429,120]
[406589271,1771957838252,-173.153,0.00036429,45]
[406589272,1771957838261,-194.44206983,0.00036429,45]
[406589273,1771957838270,-500.0,0.00036429,2]
[406589274,1771957838279,-221.5733783,0.00036429,15]
[406589275,1771957838288,-499713.7877,0.0003643,2]
[406589276,1771957838297,-182.580445,0.00036456,2]
[406589277,1771957838306,-5703.11,0.000365,2]
[406589278,1771957838315,-1101.0386,0.00038262,2]
[406589279,1771957838324,-182.580445,0.00039013,2]
[406589280,1771957838333,-643.58172965,0.0003977,3]
[406589281,1771957838342,-37000.0,0.0003978,20]
[406589282,1771957838351,-28486.09311136,0.0003978,25]
[406589283,1771957838359,-512.76,0.000406,7]
[406589284,1771957838368,-4500.86,0.00041095,120]
[406589285,1771957838378,-387.94,0.000411,14]
[406589286,1771957838387,-969.61,0.000411,30]
[406589287,1771957838397,-342.64,0.000411,30]
[406589288,1771957838406,-891.77667901,0.00041465,7]
[406589289,1771957838415,-689.69437298,0.00041465,7]
[406589290,1771957838425,-182.580445,0.00041571,2]
[406589291,1771957838434,-25373.62023888,0.00041962,30]
[406589957,1771957846207,-155.10136481,0.00036429,15]
[406589959,1771957846217,-244.1246529,0.00041962,30]
[406590156,1771958759161,-778.43568946,0.00024703,120]
[406590157,1771958759191,-4221.56431054,0.00024703,120]
[406590158,1771958759214,-153.13178126,0.00041543,61]
[406590159,1771958828129,-1031.06686865,0.00024953,120]
[406590168,1771958955161,-20.02121874,0.00041543,61]
[406590169,1771958955183,-232.64193326,0.00041954,31]
[406590170,1771958955213,-187.63619318,0.00041954,31]
[406590171,1771958955237,-361.70906833,0.00041954,31]
[406590172,1771958955260,-500.0,0.00041954,31]
[406590173,1771958955282,-500.0,0.00041954,31]
[406590174,1771958955303,-500.0,0.00041954,31]
[406590175,1771958955323,-312.45291929,0.00041954,31]
[406590176,1771958955345,-500.0,0.00041954,7]
[406590177,1771958955372,-468.21960076,0.00041954,7]
[406590178,1771958955392,-250.98,0.000423,2]
[406590179,1771958955412,-163.24,0.00042407,120]
[406590180,1771958955431,-185.05,0.00042407,120]
[406590181,1771958955450,-150.11,0.00042407,120]
[406590182,1771958955470,-174.56,0.00042408,120]
[406590183,1771958955489,-171.41,0.00042907,120]
[406590184,1771958955508,-157.61,0.00042907,120]
[406590185,1771958955526,-183.29,0.00042908,120]
[406590186,1771958955545,-179.98,0.00043407,120]
[406590187,1771958955564,-165.49,0.00043407,120]
[406590188,1771958955584,-192.45,0.00043408,120]
[406590189,1771958955603,-188.98,0.00043907,120]
[406590190,1771958955624,-173.77,0.00043907,120]
[406590191,1771958955643,-202.08,0.00043908,120]
[406590192,1771958955661,-182.580445,0.00044129,2]
[406590193,1771958955686,-198.43,0.00044407,120]
[406590194,1771958955705,-182.46,0.00044407,120]
[406590195,1771958955724,-212.18,0.00044408,120]
[406590196,1771958955743,-208.35,0.00044907,120]
[406590197,1771958955764,-191.58,0.00044907,120]
[406590198,1771958955784,-222.79,0.00044908,120]
[406590199,1771958955804,-218.76,0.00045407,120]
[406590200,1771958955824,-201.16,0.00045407,120]
[406590201,1771958955844,-233.93,0.00045408,120]
[406590202,1771958955865,-229.7,0.00045907,120]
[406590203,1771958955884,-211.22,0.00045907,120]
[406590204,1771958955905,-245.62,0.00045908,120]
[406590205,1771958955931,-241.22,0.00046407,120]
[406590206,1771958955959,-221.78,0.00046407,120]
[406590207,1771958955980,-257.91,0.00046408,120]
[406590208,1771958956000,-232.87,0.00046907,120]
[406590209,1771958956020,-270.8,0.00046908,120]
[406590210,1771958956040,-172.0,0.00047,90]
[406590211,1771958956061,-244.51,0.00047407,120]
[406590212,1771958956184,-284.33,0.00047408,120]
[406590213,1771958956208,-256.74,0.00047907,120]
[406590214,1771958956228,-298.56,0.00047908,120]
[406590215,1771958956248,-601.21376001,0.00048,2]
[406590216,1771958956270,-269.57,0.00048407,120]
[406590217,1771958956290,-313.49,0.00048408,120]
[406590218,1771958956309,-283.05,0.00048907,120]
[406590219,1771958956329,-329.16,0.00048908,120]
[406590220,1771958956349,-297.2,0.00049407,120]
[406590221,1771958956370,-345.62,0.00049408,120]
[406590222,1771958956391,-151.0,0.000496,28]
[406590223,1771958956410,-712.0,0.00049835,31]
[406590224,1771958956429,-402.0,0.00049835,31]
[406590225,1771958956467,-312.06,0.00049907,120]
[406590226,1771958956497,-362.9,0.00049908,120]
[406590227,1771958956522,-397.0,0.0004996,31]
[406590228,1771958956556,-744.3517164,0.00050121,2]
[406590229,1771958956581,-200.0,0.000503,60]
[406590230,1771958956606,-327.73,0.00050407,120]
[406590231,1771958956627,-381.05,0.00050408,120]
[406590232,1771958956649,-300.0,0.000506,60]
[406590233,1771958956670,-500.0,0.000509,60]
[406590234,1771958956699,-400.1,0.00050908,120]
[406590235,1771958956724,-1000.0,0.000512,60]
[406590236,1771958956750,-420.1,0.00051408,120]
[406590237,1771958956775,-155.10136481,0.00051479,120]
[406590238,1771958956799,-14310.37720708,0.0005148,2]
[406590239,1771958956822,-219.18999347,0.00051726,120]
[406590240,1771958956848,-238.79272384,0.00051726,120]
[406590241,1771958956877,-150.0,0.00051726,120]
[406590242,1771958956901,-150.0,0.00051726,120]
[406590243,1771958956925,-150.0,0.00051726,120]
[406590244,1771958956947,-175.20052986,0.00051726,120]
[406590245,1771958956967,-200.4215101,0.00051781,120]
[406590246,1771958956988,-2499.1245248,0.000519,2]
[406590247,1771958957010,-441.11,0.00051908,120]
[406590248,1771958957033,-457.1,0.0005199,10]
[406590249,1771958957055,-4633.7884536,0.0005199,4]
[406590250,1771958957081,-4313.32,0.00051999,120]
[406590251,1771958957103,-8525.54621987,0.00052,2]
[406590252,1771958971161,-5000.0,0.00024953,2]
[406590253,1771958971181,-643.6,0.0005199,10]
[406590254,1771958971201,-536.33,0.0005199,10]
[406590255,1771958971224,-642965.75862169,0.00052,2]
[406590340,1771959032436,-388.02580248,0.00024953,2]
[406590385,1771959038127,-473.67327033,0.00024703,120]
[406590386,1771959038137,-1745.8239672,0.00024953,2]